fUSD/lending_fUSD_20251006
["ID","MTS","AMOUNT","RATE_DAILY","PERIOD"]
[389614247,1759746655677,-3912.33,0.00016438,2]
[389614248,1759746655686,-532.39778557,0.00016438,2]
[389614249,1759746655698,-3912.33,0.00016438,2]
[389614250,1759746655707,-3912.33,0.00016438,2]
[389614251,1759746655717,-3912.33,0.00016438,2]
[389614252,1759746655727,-3912.33,0.00016438,2]
[389614253,1759746655736,-3912.33,0.00016438,2]
[389614254,1759746655745,-3912.48981459,0.00016438,2]
[389614255,1759746655754,-662.16,0.00016438,2]
[389614256,1759746655763,-500.0,0.00016438,2]
[389614257,1759746655772,-662.16,0.00016438,2]
[389614258,1759746655782,-500.0,0.00016438,2]
[389614259,1759746655792,-662.16,0.00016438,2]
[389614260,1759746655801,-500.0,0.00016438,2]
[389614261,1759746655811,-662.16,0.00016438,2]
[389614262,1759746655821,-500.0,0.00016438,2]
[389614263,1759746655830,-662.16,0.00016438,2]
[389614264,1759746655840,-343.37,0.00016438,2]
[389614265,1759746655849,-662.16,0.00016438,2]
[389614266,1759746655858,-1167.69,0.00016438,2]
[389614267,1759746655868,-662.16,0.00016438,2]
[389614268,1759746655877,-1167.69,0.00016438,2]
[389614269,1759746655886,-662.16,0.00016438,2]
[389614270,1759746655895,-1167.69,0.00016438,2]
[389614271,1759746655904,-500.0,0.00016438,2]
[389614272,1759746655913,-662.16,0.00016438,2]
[389614273,1759746655922,-1167.69,0.00016438,2]
[389614274,1759746655932,-500.0,0.00016438,2]
[389614275,1759746655941,-662.16,0.00016438,2]
[389614276,1759746655951,-1167.69,0.00016438,2]
[389614277,1759746655959,-500.0,0.00016438,2]
[389614278,1759746655968,-500.0,0.00016438,2]
[389614279,1759746655977,-500.0,0.00016438,2]
[389614280,1759746655986,-662.16,0.00016438,2]
[389614281,1759746655995,-500.0,0.00016438,2]
[389614282,1759746656004,-500.0,0.00016438,2]
[389614283,1759746656013,-500.0,0.00016438,2]
[389614284,1759746656023,-662.16,0.00016438,2]
[389614285,1759746656032,-1167.69,0.00016438,2]
[389614286,1759746656042,-501.48906989,0.00016438,2]
[389614287,1759746656051,-500.0,0.00016438,2]
[389614288,1759746656060,-500.0,0.00016438,2]
[389614289,1759746656069,-662.16,0.00016438,2]
[389614290,1759746656078,-1167.69,0.00016438,2]
[389614291,1759746656087,-500.0,0.00016438,2]
[389614292,1759746656096,-500.0,0.00016438,2]
[389614293,1759746656105,-662.16,0.00016438,2]
[389614294,1759746656115,-500.0,0.00016438,2]
[389614295,1759746656125,-1167.69,0.00016438,2]
[389614296,1759746656135,-500.0,0.00016438,2]
[389614297,1759746656144,-662.16,0.00016438,2]
[389614298,1759746656155,-500.0,0.00016438,2]
[389614299,1759746656164,-1167.69,0.00016438,2]
[389614300,1759746656174,-500.0,0.00016438,2]
[389614301,1759746656183,-662.16,0.00016438,2]
[389614302,1759746656195,-500.0,0.00016438,2]
[389614303,1759746656205,-1167.69,0.00016438,2]
[389614304,1759746656214,-500.0,0.00016438,2]
[389614305,1759746656223,-662.16,0.00016438,2]
[389614306,1759746656232,-1167.69,0.00016438,2]
[389614307,1759746656241,-500.0,0.00016438,2]
[389614308,1759746656249,-500.0,0.00016438,2]
[389614309,1759746656258,-662.16,0.00016438,2]
[389614310,1759746656267,-1167.69,0.00016438,2]
[389614311,1759746656334,-500.0,0.00016438,2]
[389614312,1759746656343,-500.0,0.00016438,2]
[389614313,1759746656352,-662.16,0.00016438,2]
[389614314,1759746656361,-500.0,0.00016438,2]
[389614315,1759746656371,-1167.69,0.00016438,2]
[389614316,1759746656380,-634.33,0.00016438,2]
[389614317,1759746656389,-662.16,0.00016438,2]
[389614318,1759746656398,-500.0,0.00016438,2]
[389614319,1759746656407,-1167.69,0.00016438,2]
[389614320,1759746656416,-662.16,0.00016438,2]
[389614321,1759746656425,-1167.69,0.00016438,2]
[389614322,1759746656434,-500.0,0.00016438,2]
[389614323,1759746656443,-662.16,0.00016438,2]
[389614324,1759746656452,-1167.69,0.00016438,2]
[389614325,1759746656462,-500.0,0.00016438,2]
[389614326,1759746656471,-662.16,0.00016438,2]
[389614327,1759746656480,-1167.69,0.00016438,2]
[389614328,1759746656490,-500.0,0.00016438,2]
[389614329,1759746656500,-1167.69,0.00016438,2]
[389614330,1759746656509,-500.0,0.00016438,2]
[389614331,1759746656518,-662.32700765,0.00016438,2]
[389614332,1759746656528,-224.0285187,0.00016438,2]
[389614333,1759746656537,-1167.69,0.00016438,2]
[389614334,1759746656546,-1167.69,0.00016438,2]
[389614335,1759746656555,-1167.69,0.00016438,2]
[389614336,1759746656565,-1167.69,0.00016438,2]
[389614337,1759746656574,-1167.69,0.00016438,2]
[389614338,1759746656583,-1167.81998595,0.00016438,2]
[389614339,1759746656591,-500.0,0.00016438,2]
[389614340,1759746656601,-500.0,0.00016438,2]
[389614341,1759746656610,-500.0,0.00016438,2]
[389614342,1759746656619,-500.0,0.00016438,2]
[389614343,1759746656628,-500.0,0.00016438,2]
[389614344,1759746656638,-500.0,0.00016438,2]
[389614345,1759746656647,-500.0,0.00016438,2]
[389614346,1759746656656,-500.0,0.00016438,2]
[389614347,1759746656665,-500.0,0.00016438,2]
[389614348,1759746656674,-526.3156688,0.00016438,2]
[389614349,1759746656683,-501.5633972,0.00016438,2]
[389614350,1759746656700,-500.0,0.00016438,2]
[389614351,1759746656710,-320.14200527,0.00016438,2]
[389614352,1759746657205,-179.85799473,0.00016438,2]
[389614353,1759746657215,-500.0,0.00016438,2]
[389614354,1759746657223,-315.03,0.00016438,2]
[389614355,1759746657234,-500.0,0.00016438,2]
[389614356,1759746657243,-500.0,0.00016438,2]
[389614357,1759746657252,-500.0,0.00016438,2]
[389614358,1759746657263,-500.0,0.00016438,2]
[389614359,1759746657272,-500.0,0.00016438,2]
[389614360,1759746657281,-500.0,0.00016438,2]
[389614361,1759746657290,-500.0,0.00016438,2]
[389614362,1759746657299,-500.0,0.00016438,2]
[389614363,1759746657308,-500.0,0.00016438,2]
[389614364,1759746657317,-584.87444139,0.00016438,2]
[389614365,1759746657327,-1916.11,0.00016438,2]
[389614366,1759746657336,-1916.11,0.00016438,2]
[389614367,1759746657345,-1916.11,0.00016438,2]
[389614368,1759746657355,-1916.11,0.00016438,2]
[389614369,1759746657364,-1916.11,0.00016438,2]
[389614370,1759746657373,-1916.11,0.00016438,2]
[389614371,1759746657382,-500.0,0.00016438,2]
[389614372,1759746657391,-1916.11,0.00016438,2]
[389614373,1759746657400,-500.0,0.00016438,2]
[389614374,1759746657409,-1916.11,0.00016438,2]
[389614375,1759746657418,-500.0,0.00016438,2]
[389614376,1759746657428,-1916.11,0.00016438,2]
[389614377,1759746657437,-500.0,0.00016438,2]
[389614378,1759746657447,-1916.11,0.00016438,2]
[389614379,1759746657456,-500.0,0.00016438,2]
[389614380,1759746657465,-1916.11,0.00016438,2]
[389614381,1759746657475,-500.0,0.00016438,2]
[389614382,1759746657484,-1916.11,0.00016438,2]
[389614383,1759746657494,-630.81617814,0.00016438,2]
[389614384,1759746657503,-1916.11,0.00016438,2]
[389614385,1759746657513,-1916.11,0.00016438,2]
[389614386,1759746657523,-1916.11,0.00016438,2]
[389614387,1759746657533,-1916.11,0.00016438,2]
[389614388,1759746657542,-1916.11,0.00016438,2]
[389614389,1759746657551,-1916.11,0.00016438,2]
[389614390,1759746657560,-1916.11,0.00016438,2]
[389614391,1759746657569,-1916.11,0.00016438,2]
[389614392,1759746657579,-875.76,0.00016438,2]
[389614393,1759746657589,-2582.54,0.00016438,2]
[389614394,1759746657598,-1916.11,0.00016438,2]
[389614395,1759746657607,-875.76,0.00016438,2]
[389614396,1759746657616,-2582.54,0.00016438,2]
[389614397,1759746657625,-1916.11,0.00016438,2]
[389614398,1759746657634,-875.76,0.00016438,2]
[389614399,1759746657644,-2582.54,0.00016438,2]
[389614400,1759746657653,-1916.11,0.00016438,2]
[389614401,1759746657662,-875.76,0.00016438,2]
[389614402,1759746657671,-2582.54,0.00016438,2]
[389614403,1759746657680,-1916.22,0.00016438,2]
[389614404,1759746657689,-2582.54,0.00016438,2]
[389614405,1759746657699,-875.76,0.00016438,2]
[389614406,1759746657708,-2582.54,0.00016438,2]
[389614407,1759746657717,-875.76,0.00016438,2]
[389614408,1759746657727,-2582.54,0.00016438,2]
[389614409,1759746657736,-875.76,0.00016438,2]
[389614410,1759746657746,-2582.54,0.00016438,2]
[389614411,1759746657754,-875.76,0.00016438,2]
[389614412,1759746657763,-2582.54,0.00016438,2]
[389614413,1759746657774,-875.76,0.00016438,2]
[389614414,1759746657783,-2582.54,0.00016438,2]
[389614415,1759746657794,-875.76,0.00016438,2]
[389614416,1759746657804,-2582.54,0.00016438,2]
[389614417,1759746657814,-500.0,0.00016438,2]
[389614418,1759746657823,-875.76,0.00016438,2]
[389614419,1759746657833,-2582.54,0.00016438,2]
[389614420,1759746657842,-500.0,0.00016438,2]
[389614421,1759746657851,-875.76,0.00016438,2]
[389614422,1759746657860,-2582.54,0.00016438,2]
[389614423,1759746657869,-875.76,0.00016438,2]
[389614424,1759746657878,-500.0,0.00016438,2]
[389614425,1759746657888,-2582.54,0.00016438,2]
[389614426,1759746657898,-151.0,0.00016438,2]
[389614427,1759746657907,-500.0,0.00016438,2]
[389614428,1759746657918,-875.76,0.00016438,2]
[389614429,1759746657926,-2582.54,0.00016438,2]
[389614430,1759746657935,-151.0,0.00016438,2]
[389614431,1759746657944,-500.0,0.00016438,2]
[389614432,1759746657953,-875.76,0.00016438,2]
[389614433,1759746657962,-2582.54,0.00016438,2]
[389614434,1759746657972,-500.0,0.00016438,2]
[389614435,1759746657981,-151.0,0.00016438,2]
[389614436,1759746657990,-875.76,0.00016438,2]
[389614437,1759746657999,-2582.54,0.00016438,2]
[389614438,1759746658008,-500.0,0.00016438,2]
[389614439,1759746658017,-875.76,0.00016438,2]
[389614440,1759746658026,-151.0,0.00016438,2]
[389614441,1759746658035,-500.0,0.00016438,2]
[389614442,1759746658045,-875.76,0.00016438,2]
[389614443,1759746658054,-151.0,0.00016438,2]
[389614444,1759746658062,-2582.54,0.00016438,2]
[389614445,1759746658071,-875.76,0.00016438,2]
[389614446,1759746658081,-151.0,0.00016438,2]
[389614447,1759746658090,-500.0,0.00016438,2]
[389614448,1759746658099,-875.76,0.00016438,2]
[389614449,1759746658107,-151.0,0.00016438,2]
[389614450,1759746658116,-875.76,0.00016438,2]
[389614451,1759746658125,-500.0,0.00016438,2]
[389614452,1759746658134,-2582.54,0.00016438,2]
[389614453,1759746658144,-875.76,0.00016438,2]
[389614454,1759746658153,-500.0,0.00016438,2]
[389614455,1759746658162,-2582.54,0.00016438,2]
[389614456,1759746658171,-500.0,0.00016438,2]
[389614457,1759746658179,-500.0,0.00016438,2]
[389614458,1759746658191,-2582.54,0.00016438,2]
[389614459,1759746658199,-875.76,0.00016438,2]
[389614460,1759746658209,-500.0,0.00016438,2]
[389614461,1759746658218,-500.0,0.00016438,2]
[389614462,1759746658227,-2582.54,0.00016438,2]
[389614463,1759746658236,-875.79552787,0.00016438,2]
[389614464,1759746658246,-500.0,0.00016438,2]
[389614465,1759746658255,-500.0,0.00016438,2]
[389614466,1759746658264,-2582.54,0.00016438,2]
[389614467,1759746658273,-500.0,0.00016438,2]
[389614468,1759746658282,-500.0,0.00016438,2]
[389614469,1759746658291,-2582.77507094,0.00016438,2]
[389614470,1759746658301,-500.0,0.00016438,2]
[389614471,1759746658310,-500.0,0.00016438,2]
[389614472,1759746658319,-500.0,0.00016438,2]
[389614473,1759746658328,-500.0,0.00016438,2]
[389614474,1759746658337,-500.0,0.00016438,2]
[389614475,1759746658346,-500.0,0.00016438,2]
[389614476,1759746658355,-424.26926629,0.00016438,2]
[389614477,1759746658364,-500.0,0.00016438,2]
[389614478,1759746658374,-500.0,0.00016438,2]
[389614479,1759746658383,-1605.13,0.00016438,2]
[389614480,1759746658392,-500.0,0.00016438,2]
[389614481,1759746658401,-1605.13,0.00016438,2]
[389614482,1759746658411,-250.87,0.00016438,2]
[389614483,1759746658420,-1605.13,0.00016438,2]
[389614484,1759746658429,-1605.13,0.00016438,2]
[389614485,1759746658438,-1605.13,0.00016438,2]
[389614486,1759746658448,-1605.13,0.00016438,2]
[389614487,1759746658458,-1605.13,0.00016438,2]
[389614488,1759746658471,-1605.13,0.00016438,2]
[389614489,1759746658480,-151.0,0.00016438,2]
[389614490,1759746658490,-1605.13,0.00016438,2]
[389614491,1759746658499,-151.0,0.00016438,2]
[389614492,1759746658508,-1605.13,0.00016438,2]
[389614493,1759746658518,-602.91,0.00016438,2]
[389614494,1759746658527,-151.0,0.00016438,2]
[389614495,1759746658536,-1605.13,0.00016438,2]
[389614496,1759746658546,-602.91,0.00016438,2]
[389614497,1759746658557,-1605.13,0.00016438,2]
[389614498,1759746658566,-602.91,0.00016438,2]
[389614499,1759746658576,-1605.13,0.00016438,2]
[389614500,1759746658587,-602.91,0.00016438,2]
[389614501,1759746658597,-1605.13,0.00016438,2]
[389614502,1759746658607,-602.91,0.00016438,2]
[389614503,1759746658618,-1605.13,0.00016438,2]
[389614504,1759746658628,-602.91,0.00016438,2]
[389614505,1759746658639,-602.91,0.00016438,2]
[389614506,1759746658650,-602.91,0.00016438,2]
[389614507,1759746658659,-1605.13,0.00016438,2]
[389614508,1759746658669,-602.91,0.00016438,2]
[389614509,1759746658679,-1605.13,0.00016438,2]
[389614510,1759746658688,-602.91,0.00016438,2]
[389614511,1759746658698,-1605.13,0.00016438,2]
[389614512,1759746658708,-602.91,0.00016438,2]
[389614513,1759746658717,-1605.13,0.00016438,2]
[389614514,1759746658727,-602.91,0.00016438,2]
[389614515,1759746658737,-1605.13,0.00016438,2]
[389614516,1759746658747,-602.91,0.00016438,2]
[389614517,1759746658756,-1605.13,0.00016438,2]
[389614518,1759746658766,-602.91,0.00016438,2]
[389614519,1759746658776,-1605.13,0.00016438,2]
[389614520,1759746658785,-602.91,0.00016438,2]
[389614521,1759746658795,-1605.13,0.00016438,2]
[389614522,1759746658805,-602.91,0.00016438,2]
[389614523,1759746658814,-1605.24266775,0.00016438,2]
[389614524,1759746658823,-602.91,0.00016438,2]
[389614525,1759746658833,-602.91,0.00016438,2]
[389614526,1759746658843,-602.91,0.00016438,2]
[389614527,1759746658853,-602.91,0.00016438,2]
[389614528,1759746658862,-602.91,0.00016438,2]
[389614529,1759746658872,-602.91,0.00016438,2]
[389614530,1759746658882,-602.91,0.00016438,2]
[389614531,1759746658891,-603.11300265,0.00016438,2]
[389614532,1759746658901,-500.0,0.00016438,2]
[389614533,1759746658910,-500.0,0.00016438,2]
[389614534,1759746658920,-500.0,0.00016438,2]
[389614535,1759746658931,-500.0,0.00016438,2]
[389614536,1759746658941,-500.0,0.00016438,2]
[389614537,1759746658952,-500.0,0.00016438,2]
[389614538,1759746658962,-500.0,0.00016438,2]
[389614539,1759746658972,-500.0,0.00016438,2]
[389614540,1759746658982,-500.0,0.00016438,2]
[389614541,1759746658992,-500.0,0.00016438,2]
[389614542,1759746659002,-555.19065955,0.00016438,2]
[389614543,1759746659011,-500.0,0.00016438,2]
[389614544,1759746659021,-500.0,0.00016438,2]
[389614545,1759746659031,-500.0,0.00016438,2]
[389614546,1759746659041,-500.0,0.00016438,2]
[389614547,1759746659050,-500.0,0.00016438,2]
[389614548,1759746659061,-500.0,0.00016438,2]
[389614549,1759746659073,-500.0,0.00016438,2]
[389614550,1759746659082,-500.0,0.00016438,2]
[389614551,1759746659093,-500.0,0.00016438,2]
[389614552,1759746659103,-500.0,0.00016438,2]
[389614553,1759746659113,-500.0,0.00016438,2]
[389614554,1759746659124,-500.0,0.00016438,2]
[389614555,1759746659134,-500.0,0.00016438,2]
[389614556,1759746659145,-500.0,0.00016438,2]
[389614557,1759746659155,-500.0,0.00016438,2]
[389614558,1759746659164,-500.0,0.00016438,2]
[389614559,1759746659174,-519.56,0.00016438,2]
[389614560,1759746659186,-500.0,0.00016438,2]
[389614561,1759746659198,-500.0,0.00016438,2]
[389614562,1759746659208,-241.5850864,0.00016438,2]
[389614563,1759746659218,-501.17447811,0.00016438,2]
[389614564,1759746659228,-2418.77,0.00016438,2]
[389614565,1759746659238,-500.0,0.00016438,2]
[389614566,1759746659248,-2418.77,0.00016438,2]
[389614567,1759746659258,-500.0,0.00016438,2]
[389614568,1759746659270,-500.0,0.00016438,2]
[389614569,1759746659280,-2418.77,0.00016438,2]
[389614570,1759746659290,-500.0,0.00016438,2]
[389614571,1759746659300,-573.02361376,0.00016438,2]
[389614572,1759746659309,-2418.77,0.00016438,2]
[389614573,1759746659319,-500.0,0.00016438,2]
[389614574,1759746659329,-2418.77,0.00016438,2]
[389614575,1759746659339,-500.0,0.00016438,2]
[389614576,1759746659349,-2418.77,0.00016438,2]
[389614577,1759746659359,-503.67435599,0.00016438,2]
[389614578,1759746659369,-2418.77,0.00016438,2]
[389614579,1759746659379,-2418.77,0.00016438,2]
[389614580,1759746659389,-500.0,0.00016438,2]
[389614581,1759746659398,-2418.77,0.00016438,2]
[389614582,1759746659408,-500.0,0.00016438,2]
[389614583,1759746659417,-500.0,0.00016438,2]
[389614584,1759746659427,-2418.77,0.00016438,2]
[389614585,1759746659437,-500.0,0.00016438,2]
[389614586,1759746659446,-500.0,0.00016438,2]
[389614587,1759746659456,-2418.77,0.00016438,2]
[389614588,1759746659467,-500.0,0.00016438,2]
[389614589,1759746659477,-500.0,0.00016438,2]
[389614590,1759746659487,-2418.77,0.00016438,2]
[389614591,1759746659496,-500.0,0.00016438,2]
[389614592,1759746659506,-500.0,0.00016438,2]
[389614593,1759746659516,-2418.77,0.00016438,2]
[389614594,1759746659526,-500.0,0.00016438,2]
[389614595,1759746659536,-2418.77,0.00016438,2]
[389614596,1759746659546,-500.0,0.00016438,2]
[389614597,1759746659556,-2418.77,0.00016438,2]
[389614598,1759746659566,-500.0,0.00016438,2]
[389614599,1759746659576,-2418.77,0.00016438,2]
[389614600,1759746659586,-385.70012329,0.00016438,2]
[389614601,1759746659596,-500.0,0.00016438,2]
[389614602,1759746659606,-2418.77,0.00016438,2]
[389614603,1759746659616,-2418.77,0.00016438,2]
[389614604,1759746659626,-500.0,0.00016438,2]
[389614605,1759746659635,-2418.77,0.00016438,2]
[389614606,1759746659645,-500.0,0.00016438,2]
[389614607,1759746659655,-2418.77,0.00016438,2]
[389614608,1759746659666,-500.0,0.00016438,2]
[389614609,1759746659676,-2418.77,0.00016438,2]
[389614610,1759746659686,-500.0,0.00016438,2]
[389614611,1759746659695,-2418.77,0.00016438,2]
[389614612,1759746659705,-500.0,0.00016438,2]
[389614613,1759746659714,-2159.02906326,0.00016438,2]
[389614620,1759747035733,500.0,5.7e-05,2]
[389614622,1759747342326,500.0,5.7e-05,2]
[389614634,1759747605130,-200.0,0.00014962,2]
[389614635,1759747605150,-318.13610228,0.00015078,2]
[389614657,1759747832719,-114.35389772,0.00015078,2]
[389614658,1759747832728,-392.55110899,0.00015114,2]
[389614659,1759747832744,-132.56604856,0.00015114,2]
[389614660,1759747832753,-872.22802163,0.00015115,2]
[389614661,1759747832764,-620.5,0.00015115,2]
[389614662,1759747832775,-107.27197837,0.00015115,2]
[389614663,1759747832784,-174.25799253,0.00015311,2]
[389614664,1759747832797,-75.74200747,0.00015311,2]
[389614665,1759747832807,-380.62799254,0.0001556,2]
[389614666,1759747832818,-1179.37200746,0.0001556,2]
[389614667,1759747832827,-121.77301086,0.0001563,2]
[389614668,1759747832842,-352.12364711,0.0001563,2]
[389614669,1759747832852,-105.64339572,0.0001563,2]
[389614670,1759747832867,-83.76106316,0.0001563,2]
[389614671,1759747832877,-181.72766057,0.0001563,2]
[389614672,1759747832887,-1200.0,0.00015631,2]
[389614673,1759747832896,-886.15627618,0.00015632,2]
[389614674,1759747832907,-567.33679959,0.00015632,2]
[389614680,1759747838239,-106.50692423,0.00015632,2]
[389614681,1759747838249,-150.0,0.000157,2]
[389614682,1759747838258,-300.0,0.00015798,2]
[389614683,1759747838267,-1113.0,0.00015799,2]
[389614684,1759747838276,-150.99,0.00015799,2]
[389614685,1759747838286,-1000.0,0.000158,2]
[389614686,1759747838295,-443.0,0.000158,3]
[389614687,1759747838305,-1000.0,0.000158,2]
[389614688,1759747838315,-432.49,0.00015832,2]
[389614689,1759747838324,-231.28369723,0.00015886,2]
[389614690,1759747838333,-166.6215157,0.00015895,2]
[389614691,1759747838343,-5000.0,0.00015895,2]
[389614692,1759747838354,-625.05094529,0.00015897,2]
[389614693,1759747838364,-371.33707693,0.00015899,2]
[389614694,1759747838374,-192.34061978,0.000159,2]
[389614695,1759747838384,-1000.0,0.000159,2]
[389614696,1759747838394,-1000.0,0.000159,2]
[389614697,1759747838404,-1000.0,0.000159,2]
[389614698,1759747838415,-1000.0,0.000159,2]
[389614699,1759747838425,-1000.0,0.000159,2]
[389614700,1759747838435,-1015.0,0.000159,2]
[389614701,1759747838444,-1000.0,0.000159,2]
[389614702,1759747838454,-1000.0,0.000159,2]
[389614703,1759747838463,-1000.0,0.000159,3]
[389614704,1759747838472,-1000.0,0.000159,3]
[389614705,1759747838481,-1000.0,0.000159,3]
[389614706,1759747838490,-1000.0,0.000159,3]
[389614707,1759747838499,-1000.0,0.000159,4]
[389614708,1759747838509,-1000.0,0.000159,4]
[389614709,1759747838519,-1000.0,0.000159,4]
[389614710,1759747838528,-1000.0,0.000159,2]
[389614711,1759747838537,-1317.0,0.000159,2]
[389614712,1759747838546,-1000.0,0.000159,3]
[389614713,1759747838555,-1000.0,0.000159,2]
[389614714,1759747838567,-4112.979,0.000159,2]
[389614715,1759747838576,-255.043,0.000159,2]
[389614716,1759747838586,-308.69,0.000159,2]
[389614717,1759747838597,-2159.08493379,0.000159,2]
[389614718,1759747838607,-603.49956342,0.00015923,2]
[389614719,1759747838616,-625.05094525,0.00015946,2]
[389614720,1759747838625,-2159.08493371,0.00015949,2]
[389614721,1759747838635,-594.0,0.00015963,2]
[389614722,1759747838644,-170.57896445,0.00015973,2]
[389614723,1759747838654,-500.73621057,0.00015973,2]
[389614724,1759747838663,-501.12594216,0.00015973,2]
[389614725,1759747838673,-501.64142547,0.00015973,2]
[389614726,1759747838682,-500.27883194,0.00015973,2]
[389614727,1759747838691,-500.0,0.00015973,2]
[389614729,1759747838701,-500.0,0.00015973,2]
[389614731,1759747838711,-500.0,0.00015973,2]
[389614732,1759747838720,-252.01960353,0.00015973,2]
[389614733,1759747838730,-500.0,0.00015973,2]
[389614734,1759747838739,-500.0,0.00015973,2]
[389614735,1759747838748,-200.0,0.00015985,2]
[389614736,1759747838758,-322.6107,0.00015985,2]
[389614737,1759747838768,-369.92908211,0.00015995,2]
[389614738,1759747838780,-1908.12778364,0.00015995,2]
[389614739,1759747838795,-1553.24737794,0.00015995,2]
[389614740,1759747838810,-3962.55749776,0.00015995,2]
[389614741,1759747838821,-2506.7094199,0.00015995,2]
[389614742,1759747838831,-1073.87974771,0.00015995,2]
[389614743,1759747838842,-3158.92017496,0.00015995,2]
[389614744,1759747838854,-4184.156181,0.00015995,2]
[389614745,1759747838869,-801.8255628,0.00015995,2]
[389614749,1759747840239,-298.51436949,0.00015995,2]
[389614750,1759747840252,-280.80583378,0.00015995,2]
[389614751,1759747840293,-1025.06710056,0.00015995,2]
[389614752,1759747840347,-134241.91724282,0.00015995,2]
[389614753,1759747840403,-1196.2037477,0.00015995,2]
[389614754,1759747840416,-1034.6788,0.00015995,2]
[389614755,1759747840564,-13472.74970602,0.00015995,2]
[389614756,1759747840575,-3051.59,0.00015995,2]
[389614760,1759747843286,-3219.357,0.00015995,2]
[389614762,1759747843408,-57.57067804,0.00015995,2]
[389614763,1759747843418,-252.25678831,0.00015995,2]
[389614764,1759747843429,-522.10487151,0.00015995,2]
[389614765,1759747843442,-376.54819503,0.00015995,2]
[389614766,1759747843454,-301.13372,0.00015995,2]
[389614767,1759747843465,-297.86,0.00015995,2]
[389614768,1759747843572,-706.6720777,0.00015995,2]
[389614769,1759747843586,-8445.27396557,0.00015995,2]
[389614770,1759747843602,-18578.52384395,0.00015995,2]
[389614771,1759747843613,-4153.11985502,0.00015995,2]
[389614772,1759747843625,-6414.58974633,0.00015995,2]
[389614773,1759747843636,-233968.06075751,0.00015995,2]
[389614775,1759747846270,-1626.3036075,0.00015995,2]
[389614776,1759747846375,-3051.59336291,0.00015995,2]
[389614777,1759747846431,-14032.15179899,0.00015995,2]
[389614778,1759747846486,-7770.1059641,0.00015995,2]
[389614779,1759747846540,-32462.824,0.00015995,2]
[389614780,1759747846552,-5854.523494,0.00015995,2]
[389614781,1759747846564,-3145.31983479,0.00015995,2]
[389614835,1759747897961,194.35,7.586e-05,2]
[389614836,1759747898164,194.35,7.985e-05,2]
[389614837,1759747898378,194.35,8.385e-05,2]
[389614838,1759747898615,194.35,8.784e-05,2]
[389614839,1759747898851,194.35,9.183e-05,2]
[389614840,1759747898982,1080.0,0.000157,60]
[389614841,1759747899071,194.35,9.582e-05,2]
[389614842,1759747899291,194.35,9.982e-05,2]
[389614843,1759747899504,194.35,0.00010381,2]
[389614844,1759747899713,194.35,0.0001078,2]
[389614845,1759747899969,194.35,0.00011179,2]
[389614846,1759747900178,194.35,0.00011579,2]
[389614847,1759747900387,194.35,0.00011978,2]
[389614848,1759747949363,1367.59,0.000137,30]
[389614855,1759748234419,500.0,5.7e-05,2]
[389614856,1759748234584,500.0,5.7e-05,2]
[389614857,1759748234715,851.36578085,5.7e-05,2]
[389614858,1759748234833,120.82732334,4.7e-05,2]
[389614859,1759748234855,522.25521003,4.7e-05,2]